bitfinex/quotes_SOLUSD_20240625
["timestamp","ask_amount","ask_price","bid_price","bid_amount"]
[1719281732520,100.0,132.01,132.0,16.4781]
[1719281732714,100.0,132.01,132.0,6.8181]
[1719281733020,100.0,132.03,132.0,6.8178]
[1719281733725,100.0,132.01,131.98,6.819]
[1719281734102,100.0,131.99,131.98,6.819]
[1719281734500,100.0,131.99,131.97,6.8196]
[1719281735222,100.0,131.97,131.96,17.0949032]
[1719281736630,100.0,131.97,131.96,23.9151032]
[1719281737118,100.0,131.97,131.96,17.0949032]
[1719281738228,100.0,131.99,131.97,6.8193]
[1719281738617,100.0,131.99,131.96,17.0949032]
[1719281738618,100.0,131.97,131.96,23.9149032]
[1719281739014,100.0,131.99,131.96,17.0949032]
[1719281739218,100.0,132.01,131.96,17.0949032]
[1719281739710,100.0,132.01,131.98,6.819]
[1719281740210,100.0,132.01,131.98,17.0471]
[1719281740408,100.0,132.01,131.98,23.8661]
[1719281741339,100.0,132.01,131.97,6.8197]
[1719281741535,100.0,131.98,131.96,0.0449032]
[1719281741712,100.0,131.98,131.96,6.8647032]
[1719281742108,100.0,131.98,131.97,6.8197]
[1719281744221,100.0,132.0,131.98,6.819]
[1719281747942,100.0,132.02,131.96,0.0449032]
[1719281748122,6.6133,132.08,132.01,6.8175]
[1719281748123,100.0,132.07,132.01,6.8175]
[1719281748323,100.0,132.07,132.01,17.0437]
[1719281748527,33.01446487,132.09,132.05,6.8155]
[1719281748528,17.0488,132.09,132.05,6.8155]
[1719281748854,200.0,132.1,132.05,6.8155]
[1719281749020,100.0,132.08,132.06,6.815]
[1719281749943,100.0,132.08,132.05,23.854]
[1719281750234,115.29666487,132.12,132.08,6.8138]
[1719281750235,9.15206487,132.12,132.08,6.8138]
[1719281750440,100.0,132.13,132.08,6.8138]
[1719281751022,100.0,132.09,132.08,6.8138]
[1719281751231,100.0,132.07,132.04,17.0396]
[1719281751433,100.0,132.07,132.05,6.8155]
[1719281752224,100.0,132.07,132.06,6.815]
[1719281752425,100.0,132.09,132.07,6.8144]
[1719281753241,100.0,132.09,132.06,6.8149]
[1719281754627,100.0,132.07,132.05,6.8154]
[1719281754825,100.0,132.09,132.04,17.0396]
[1719281755225,100.0,132.09,132.07,6.8145]
[1719281755745,100.0,132.09,132.06,23.8519]
[1719281756639,100.0,132.09,132.07,6.8143]
[1719281756844,100.0,132.09,132.06,17.037]
[1719281759060,100.0,132.09,132.06,23.8519]
[1719281759936,100.0,132.09,132.06,17.037]
[1719281760130,100.0,132.07,132.06,17.037]
[1719281760450,100.0,132.05,132.02,6.8168]
[1719281760838,100.0,132.02,132.0,23.8625]
[1719281761032,100.0,132.02,132.0,17.0445]
[1719281761231,100.0,132.02,131.99,6.8183]
[1719281762265,100.0,132.0,131.98,6.819]
[1719281762754,53.97,132.08,131.97,17.0485]
[1719281762755,100.0,131.98,131.97,17.0485]
[1719281762946,100.0,131.98,131.96,0.0449032]
[1719281765843,100.0,131.98,131.96,6.8647032]
[1719281766053,100.0,131.98,131.96,0.0449032]
[1719281769056,100.0,131.97,131.96,0.0449032]
[1719281769356,100.0,131.98,131.96,0.0449032]
[1719281772132,6.5394,132.03,131.96,0.0449032]
[1719281772133,100.0,132.0,131.96,0.0449032]
[1719281772330,100.0,132.0,131.99,6.8186]
[1719281772543,100.0,132.0,131.97,17.0485]
[1719281772956,100.0,132.04,131.99,17.0461]
[1719281773538,100.0,132.02,131.99,23.8647]
[1719281773940,100.0,132.02,132.0,6.818]
[1719281774351,100.0,132.02,131.99,23.8646]
[1719281774547,100.0,132.02,131.98,6.8191]
[1719281774734,100.0,131.99,131.96,17.0948032]
[1719281775340,100.0,132.01,132.0,6.8181]
[1719281775537,100.0,132.03,132.0,6.8181]
[1719281775945,100.0,132.03,132.01,6.8174]
[1719281776155,100.0,132.03,132.0,17.0448]
[1719281776455,100.0,132.03,132.0,23.8628]
[1719281776667,100.0,132.03,132.0,23.8627]
[1719281776837,100.0,132.03,132.0,17.0448]
[1719281777158,15.27406487,132.06,132.0,17.0448]
[1719281777159,100.0,132.05,132.0,17.0448]
[1719281777358,100.0,132.05,132.02,17.0424]
[1719281777940,100.0,132.03,132.02,17.0424]
[1719281778144,100.0,132.03,132.0,6.818]
[1719281778455,100.0,132.01,132.0,6.8181]
[1719281779238,100.0,132.01,131.99,17.0464]
[1719281779760,100.0,131.99,131.97,6.8193]
[1719281780650,100.0,131.99,131.96,23.9146032]
[1719281780853,100.0,131.97,131.96,0.0449032]
[1719281783149,100.0,131.97,131.96,6.8651032]
[1719281783360,100.0,131.99,131.98,6.8192]
[1719281783975,100.0,131.99,131.97,23.8682]
[1719281784871,100.0,131.99,131.97,16.5487]
[1719281785546,100.0,131.97,131.96,0.0449032]
[1719281787163,100.0,131.97,131.96,6.8651032]
[1719281787371,100.0,131.99,131.97,6.8195]
[1719281788967,122.3281,132.02,131.96,17.0951032]
[1719281789272,100.0,132.0,131.96,17.0951032]
[1719281789657,200.0,132.0,131.96,17.0951032]
[1719281789872,100.0,132.0,131.96,17.0951032]
[1719281790089,100.0,131.98,131.96,17.0951032]
[1719281790252,100.0,131.98,131.96,0.0449032]
[1719281792365,100.0,131.98,131.96,6.8650032]
[1719281793659,230.12460383,132.02,131.97,6.8196]
[1719281793859,236.94180383,132.02,131.96,6.8649032]
[1719281794466,236.94180383,132.02,131.96,6.8650032]
[1719281794762,100.0,132.0,131.96,6.8650032]
[1719281803086,100.0,132.0,131.97,6.8196]
[1719281803789,100.0,131.98,131.96,0.0449032]
[1719281804496,200.0,131.98,131.96,0.0449032]
[1719281804988,206.8195,131.98,131.96,0.0449032]
[1719281805687,200.0,131.98,131.96,0.0449032]
[1719281808200,6.8197,131.97,131.96,0.0449032]
[1719281808573,214.61364282,131.98,131.96,0.0449032]
[1719281809188,6.8197,131.97,131.96,0.0449032]
[1719281809391,35.7897,131.97,131.96,0.0449032]
[1719281809979,81.0497,131.97,131.96,0.0449032]
[1719281810176,100.0,131.9,131.86,23.8875]
[1719281810385,100.0,131.9,131.87,6.8248]
[1719281810895,100.0,131.9,131.85,23.2125]
[1719281810896,100.0,131.88,131.85,23.2125]
[1719281811092,100.0,131.9,131.86,6.8249]
[1719281811283,100.0,131.9,131.85,16.387]
[1719281811284,100.0,131.9,131.87,6.8248]
[1719281811790,200.0,131.9,131.85,17.0642]
[1719281812283,200.0,131.9,131.85,23.89]
[1719281812590,100.0,131.88,131.85,17.0642]
[1719281812782,100.0,131.88,131.85,23.89]
[1719281813607,200.0,131.92,131.86,6.8249]
[1719281813897,200.0,131.92,131.87,6.8247]
[1719281814294,100.0,131.9,131.86,6.8252]
[1719281815179,100.0,131.9,131.87,6.8247]
[1719281815390,100.0,131.92,131.88,6.8242]
[1719281816799,100.0,131.9,131.87,16.4957]
[1719281817105,100.0,131.92,131.87,23.3205]
[1719281817106,200.0,131.92,131.87,23.3205]
[1719281817799,100.0,131.92,131.88,17.0602]
[1719281817999,200.0,131.96,131.9,17.0577]
[1719281818300,207.79434282,131.98,131.93,22.4345]
[1719281819004,214.61354282,131.98,131.93,15.6128]
[1719281819786,207.79434282,131.98,131.93,22.4344]
[1719281820406,214.61374282,131.98,131.93,15.6128]
[1719281820605,100.0,131.96,131.93,15.6128]
[1719281821606,107.79434282,131.98,131.93,15.6128]
[1719281821982,107.79434282,131.98,131.94,6.8211]
[1719281822396,107.79434282,131.98,131.93,22.4344]
[1719281822597,214.61364282,131.98,131.93,15.6128]
[1719281823001,107.79434282,131.98,131.93,15.6128]
[1719281823187,107.79434282,131.98,131.94,17.0524]
[1719281823391,100.0,131.98,131.94,17.0524]
[1719281823591,100.0,131.98,131.94,23.8733]
[1719281823993,100.0,132.0,131.96,6.8199]
[1719281825308,100.0,132.0,131.96,17.0495]
[1719281826807,100.0,132.0,131.96,23.8695]
[1719281827805,100.0,131.98,131.96,23.8695]
[1719281828005,100.0,131.96,131.93,32.6666]
[1719281828239,100.0,131.96,131.92,6.0687]
[1719281828392,100.0,131.92,131.89,15.3428]
[1719281829111,100.0,131.9,131.85,21.4039]
[1719281829408,100.0,131.9,131.85,28.2294]
[1719281829996,100.0,131.92,131.87,6.8248]
[1719281830708,100.0,131.94,131.87,17.0614]
[1719281830903,100.0,131.94,131.89,6.8233]
[1719281831293,100.0,131.94,131.89,17.059]
[1719281831695,100.0,131.94,131.89,23.8828]
[1719281831926,100.0,131.91,131.89,17.059]
[1719281832212,100.0,131.91,131.87,6.8248]
[1719281832592,100.0,131.91,131.86,17.0628]
[1719281833604,100.0,131.91,131.87,6.8247]
[1719281833810,100.0,131.91,131.88,6.8243]
[1719281834518,100.0,131.96,131.91,6.8224]
[1719281834888,100.0,131.92,131.9,23.3808]
[1719281835087,100.0,131.92,131.88,6.8238]
[1719281835505,100.0,131.92,131.89,6.8238]
[1719281835708,100.0,131.92,131.88,6.8242]
[1719281835901,100.0,131.89,131.85,28.2293]
[1719281836129,100.0,131.89,131.85,21.922]
[1719281836918,100.0,131.89,131.86,6.8254]
[1719281837209,100.0,131.89,131.87,6.8248]
[1719281837392,100.0,131.91,131.88,6.8243]
[1719281837906,100.0,131.89,131.86,23.888]
[1719281838302,100.0,131.89,131.87,6.8248]
[1719281839090,100.0,131.89,131.86,23.888]
[1719281839414,100.0,131.87,131.83,17.0668]
[1719281839709,100.0,131.87,131.85,6.8255]
[1719281839916,100.0,131.87,131.86,6.8254]
[1719281841906,100.0,131.89,131.86,6.8254]
[1719281842090,100.0,131.91,131.87,6.8248]
[1719281842604,100.0,131.93,131.89,17.0587]
[1719281842812,106.8207,131.96,131.88,6.2182]
[1719281842813,100.0,131.96,131.88,6.2182]
[1719281843023,100.0,131.96,131.93,6.8216]
[1719281843202,100.0,131.94,131.91,23.8788]
[1719281843386,200.0,131.96,131.92,6.8222]
[1719281844012,100.0,131.96,131.93,6.8216]
[1719281844311,100.0,131.94,131.92,6.8221]
[1719281844814,100.0,131.94,131.88,23.2786]
[1719281844815,100.0,131.92,131.88,23.2786]
[1719281845112,100.0,131.92,131.89,6.8235]
[1719281845296,100.0,131.92,131.9,6.8232]
[1719281845708,100.0,131.94,131.9,6.8232]
[1719281845897,100.0,131.96,131.88,6.2182]
[1719281846098,200.0,131.98,131.93,6.8217]
[1719281846809,100.0,131.98,131.93,6.8217]
[1719281847498,100.0,131.98,131.9,16.4166]
[1719281847816,100.0,131.98,131.96,17.0493]
[1719281847990,100.0,131.98,131.94,6.8208]
[1719281848193,100.0,131.98,131.93,17.0537]
[1719281848619,100.0,131.98,131.94,6.8208]
[1719281850101,100.0,131.98,131.95,6.8207]
[1719281850316,100.0,132.0,131.96,6.8202]
[1719281850996,100.0,131.95,131.92,17.0553]
[1719281851316,100.0,131.93,131.9,16.4166]
[1719281851519,100.0,131.93,131.9,23.2398]
[1719281851714,100.0,131.93,131.91,6.8226]
[1719281851906,100.0,131.93,131.92,6.8223]
[1719281852213,100.0,131.95,131.92,6.8223]
[1719281853013,100.0,131.95,131.91,23.8793]
[1719281853703,100.0,131.95,131.92,6.8222]
[1719281854099,100.0,131.97,131.91,17.0566]
[1719281854498,100.0,131.97,131.94,6.8212]
[1719281854708,100.0,131.97,131.93,23.8753]
[1719281855411,100.0,131.97,131.94,6.8212]
[1719281855612,100.0,131.97,131.92,6.8218]
[1719281855811,100.0,131.95,131.92,6.8218]
[1719281856020,100.0,131.95,131.91,6.8227]
[1719281856202,100.0,131.93,131.91,6.8227]
[1719281856713,100.0,131.93,131.92,6.8223]
[1719281857023,100.0,131.93,131.9,23.2394]
[1719281857323,100.0,131.93,131.89,23.8829]
[1719281857696,100.0,131.93,131.9,6.8233]
[1719281858303,100.0,131.91,131.9,6.8233]
[1719281859105,100.0,131.91,131.89,17.0591]
[1719281859424,100.0,131.91,131.9,6.8233]
[1719281861209,100.0,131.93,131.91,17.0566]
[1719281861600,100.0,131.93,131.92,6.8223]
[1719281862517,100.0,131.95,131.92,6.8223]
[1719281862711,100.0,131.95,131.93,6.8217]
[1719281863017,100.0,131.97,131.93,17.0541]
[1719281863415,107.81007711,131.97,131.93,23.8755]
[1719281863922,100.0,131.97,131.94,6.8211]
[1719281864827,100.0,131.99,131.93,16.2053]
[1719281864997,100.0,131.99,131.95,6.8206]
[1719281865201,100.0,131.99,131.94,23.8734]
[1719281865397,100.0,131.99,131.93,16.2053]
[1719281865620,100.0,131.96,131.93,16.2053]
[1719281866012,100.0,131.96,131.93,23.027]
[1719281866525,100.0,131.96,131.94,6.8212]
[1719281866898,100.0,131.96,131.93,33.2594]
[1719281867425,100.0,131.96,131.94,6.8211]
[1719281869619,100.0,131.96,131.95,6.8207]
[1719281870220,100.0,131.96,131.94,6.8212]
[1719281871023,100.0,131.96,131.93,17.0541]
[1719281871222,100.0,131.93,131.91,6.8224]
[1719281872102,100.0,131.93,131.92,6.8223]
[1719281876222,100.0,131.99,131.92,34.1094]
[1719281876522,100.0,131.99,131.96,17.0502]
[1719281877527,100.0,131.99,131.96,23.8704]
[1719281878309,100.0,131.97,131.96,23.8704]
[1719281878511,100.0,131.97,131.96,17.0502]
[1719281878915,100.0,131.97,131.96,23.8704]
[1719281879531,100.0,131.97,131.96,17.0502]
[1719281880136,100.0,131.99,131.96,17.0502]
[1719281880310,100.0,131.99,131.97,6.8197]
[1719281881119,100.0,131.97,131.96,17.0502]
[1719281881815,100.0,131.97,131.94,6.8211]
[1719281882015,100.0,131.97,131.93,17.0538]
[1719281882344,100.0,131.97,131.96,6.8202]
[1719281884432,100.0,131.97,131.95,23.8721]
[1719281886327,100.0,131.97,131.96,6.8202]
[1719281886942,100.0,131.97,131.95,23.8721]
[1719281887130,100.0,131.99,131.96,6.8202]
[1719281887524,100.0,132.01,131.98,6.8192]
[1719281887741,100.0,132.01,131.99,6.8186]
[1719281888125,100.0,132.01,131.98,6.819]
[1719281888446,100.0,132.01,131.99,17.0457]
[1719281888745,200.0,132.05,131.99,17.0457]
[1719281888924,200.0,132.05,132.01,17.0433]
[1719281889124,200.0,132.05,132.01,23.8608]
[1719281889333,100.0,132.03,131.98,17.0473]
[1719281889735,100.0,132.03,131.99,6.8182]
[1719281889939,7.79353106,132.04,132.02,6.817]
[1719281890137,200.0,132.05,132.02,6.817]
[1719281890651,100.0,132.07,132.03,17.0406]
[1719281890853,100.0,132.07,132.01,16.3909]
[1719281891031,100.0,132.07,132.06,6.815]
[1719281891238,100.0,132.07,132.05,23.8539]
[1719281892729,100.0,132.07,132.01,16.3909]
[1719281892730,100.0,132.09,132.08,23.8491]
[1719281892923,100.0,132.11,132.08,23.8491]
[1719281893548,100.0,132.11,132.08,17.0351]
[1719281893925,107.80355672,132.11,132.08,17.0351]
[1719281894729,100.0,132.11,132.08,17.0351]
[1719281895038,100.0,132.11,132.08,23.8489]
[1719281895344,107.80425516,132.11,132.08,23.8489]
[1719281895543,7.80425516,132.11,132.08,23.8489]
[1719281895747,7.80425516,132.11,132.08,17.0351]
[1719281895926,100.0,132.14,132.11,6.8124]
[1719281896129,8.92857332,132.15,132.12,6.8119]
[1719281896334,107.80396138,132.16,132.13,6.8114]
[1719281896662,107.80396138,132.16,132.12,6.8118]
[1719281896827,107.80396138,132.16,132.1,17.0316]
[1719281896828,107.80396138,132.16,132.13,6.8113]
[1719281897429,107.80396138,132.16,132.12,6.8119]
[1719281898138,107.80396138,132.16,132.11,6.8124]
[1719281898336,107.80396138,132.16,132.1,17.0316]
[1719281898337,100.0,132.12,132.1,17.0316]
[1719281898536,100.0,132.14,132.1,17.0316]
[1719281899557,100.0,132.14,132.12,6.8118]
[1719281899849,100.0,132.12,132.1,17.0316]
[1719281900158,100.0,132.12,132.1,23.8446]
[1719281900531,100.0,132.14,132.12,6.8118]
[1719281900739,100.0,132.12,132.1,23.8444]
[1719281901535,100.0,132.14,132.1,17.0316]
[1719281901751,16.7325347,132.16,132.1,17.0316]
[1719281901752,116.7325347,132.16,132.12,6.8115]
[1719281902260,107.80396138,132.16,132.13,6.8112]
[1719281902430,107.80396138,132.16,132.14,6.8106]
[1719281902630,16.6634,132.19,132.15,17.0259]
[1719281902631,100.0,132.18,132.15,17.0259]
[1719281902836,100.0,132.18,132.15,23.8362]
[1719281903049,100.0,132.18,132.13,6.8109]
[1719281903249,107.83937352,132.18,132.13,6.8109]
[1719281903657,100.0,132.14,132.12,23.8411]
[1719281903843,100.0,132.14,132.12,17.0292]
[1719281904147,100.0,132.16,132.12,17.0292]
[1719281904351,100.0,132.16,132.14,17.0268]
[1719281904548,100.0,132.16,132.15,6.8104]
[1719281904734,100.0,132.16,132.14,23.8376]
[1719281905244,100.0,132.16,132.15,6.8104]
[1719281905443,100.0,132.16,132.14,23.8376]
[1719281906770,100.0,132.14,132.11,17.0306]
[1719281907842,100.0,132.14,132.12,6.8119]
[1719281908554,100.0,132.14,132.11,17.0306]
[1719281908756,100.0,132.11,132.08,17.0349]
[1719281908969,100.0,132.09,132.06,6.8149]
[1719281909343,100.0,132.11,132.08,6.8135]
[1719281909946,100.0,132.11,132.09,6.8134]
[1719281910467,100.0,132.11,132.08,23.8485]
[1719281910655,100.0,132.11,132.08,17.0346]
[1719281910845,100.0,132.09,132.07,6.8144]
[1719281911351,100.0,132.09,132.07,23.8502]
[1719281911751,100.0,132.09,132.08,6.814]
[1719281912160,100.0,132.11,132.09,6.8134]
[1719281912365,100.0,132.11,132.07,17.0358]
[1719281912675,100.0,132.11,132.08,6.8135]
[1719281912868,100.0,132.09,132.07,23.8502]
[1719281913371,100.0,132.09,132.08,6.814]
[1719281913570,100.0,132.11,132.08,6.814]
[1719281914651,100.0,132.11,132.09,6.8134]
[1719281914865,100.0,132.11,132.08,6.814]
[1719281915066,100.0,132.11,132.07,17.0358]
[1719281916469,100.0,132.11,132.05,23.4297]
[1719281916470,100.0,132.07,132.05,23.4297]
[1719281917165,100.0,132.07,132.06,6.815]
[1719281919074,35.812,132.12,132.05,16.6146]
[1719281919075,100.0,132.12,132.05,16.6146]
[1719281919366,100.0,132.14,132.1,17.0319]
[1719281919568,129.0,132.16,132.13,6.8114]
[1719281919876,100.0,132.16,132.14,17.0269]
[1719281921754,100.0,132.17,132.14,23.8377]
[1719281921951,100.0,132.17,132.14,17.0269]
[1719281922477,100.0,132.17,132.14,23.8377]
[1719281922668,100.0,132.15,132.14,23.8377]
[1719281924760,100.0,132.15,132.14,17.0269]
[1719281926566,100.0,132.19,132.15,6.81]
[1719281926860,100.0,132.17,132.15,6.8102]
[1719281927563,100.0,132.17,132.14,23.8377]
[1719281928358,100.0,132.17,132.14,17.0269]
[1719281928659,100.0,132.17,132.14,23.8373]
[1719281929676,100.0,132.15,132.13,6.8113]
[1719281929873,100.0,132.19,132.12,6.8119]
[1719281929874,100.0,132.13,132.12,6.8119]
[1719281930658,100.0,132.15,132.13,6.8112]
[1719281931579,107.85526529,132.17,132.14,6.8108]
[1719281931779,100.0,132.17,132.14,6.8108]
[1719281932362,100.0,132.19,132.14,6.8109]
[1719281932792,100.0,132.17,132.13,23.8396]
[1719281934583,100.0,132.17,132.14,6.8109]
[1719281935385,100.0,132.17,132.13,23.8396]
[1719281936786,100.0,132.15,132.12,6.8118]
[1719281936980,100.0,132.15,132.11,6.8123]
[1719281937375,100.0,132.17,132.1,34.0631]
[1719281937569,100.0,132.17,132.14,17.0268]
[1719281937777,100.0,132.15,132.1,34.0631]
[1719281937977,100.0,132.17,132.13,6.8114]
[1719281938485,100.0,132.17,132.14,6.8109]
[1719281938680,100.0,132.17,132.12,17.0294]
[1719281938880,100.0,132.15,132.13,6.8113]
[1719281939261,100.0,132.17,132.13,6.8113]
[1719281939466,100.0,132.17,132.1,34.0631]
[1719281939467,100.0,132.17,132.15,6.8102]
[1719281939981,100.0,132.17,132.14,23.8377]
[1719281941215,100.0,132.17,132.14,17.0269]
[1719281941567,100.0,132.17,132.14,23.8378]
[1719281942979,100.0,132.17,132.15,6.8104]
[1719281943780,107.85054569,132.19,132.15,6.8104]
[1719281944089,7.85054569,132.19,132.18,6.8088]
[1719281944266,8.92857332,132.22,132.19,6.808]
[1719281944593,122.0808,132.25,132.2,6.8077]
[1719281944775,100.0,132.25,132.2,6.8077]
[1719281944975,100.0,132.23,132.18,23.83]
[1719281945290,100.0,132.23,132.19,6.8083]
[1719281945494,100.0,132.23,132.17,15.2155]
[1719281945495,100.0,132.2,132.17,15.2155]
[1719281945685,100.0,132.2,132.17,6.8093]
[1719281945870,100.0,132.2,132.16,6.8097]
[1719281946070,100.0,132.2,132.17,6.8092]
[1719281946278,100.0,132.2,132.18,6.8087]
[1719281946491,100.0,132.22,132.19,6.8083]
[1719281946677,100.0,132.22,132.17,17.0229]
[1719281946877,100.0,132.22,132.18,6.8085]
[1719281947271,100.0,132.22,132.17,23.8322]
[1719281947493,100.0,132.2,132.17,17.0229]
[1719281948074,100.0,132.2,132.17,23.8322]
[1719281948995,100.0,132.24,132.2,6.8078]
[1719281949293,7.84506778,132.25,132.15,6.1318]
[1719281949490,7.84506778,132.25,132.23,6.8059]
[1719281949693,108.92857332,132.27,132.2,15.662]
[1719281949694,100.0,132.27,132.2,15.662]
[1719281950193,100.0,132.31,132.27,6.8041]
[1719281950393,8.92857332,132.32,132.28,23.8128]
[1719281950890,8.92857332,132.32,132.29,6.8032]
[1719281951093,8.92857332,132.32,132.28,17.0092]
[1719281951094,8.92857332,132.32,132.28,23.8128]
[1719281951701,108.92857332,132.32,132.28,17.0092]
[1719281951903,108.92857332,132.32,132.28,23.8129]
[1719281952080,108.92857332,132.32,132.29,6.8031]
[1719281952289,8.92857332,132.32,132.29,6.8031]
[1719281952579,8.92857332,132.32,132.28,23.8128]
[1719281952793,100.0,132.3,132.28,17.0092]
[1719281952974,100.0,132.3,132.26,6.6053]
[1719281953176,100.0,132.3,132.27,6.8038]
[1719281953503,100.0,132.3,132.27,6.8041]
[1719281953678,100.0,132.28,132.25,17.0125]
[1719281954080,100.0,132.26,132.22,17.0169]
[1719281954673,100.0,132.24,132.2,21.938]
[1719281954876,100.0,132.24,132.22,6.8064]
[1719281955099,100.0,132.28,132.2,21.938]
[1719281955299,100.0,132.28,132.23,23.8214]
[1719281955479,100.0,132.23,132.19,17.0197]
[1719281958294,100.0,132.27,132.22,6.8063]
[1719281960678,106.8042,132.27,132.21,23.8246]
[1719281960899,100.0,132.24,132.17,21.965]
[1719281961091,100.0,132.24,132.19,6.8082]
[1719281961582,100.0,132.21,132.18,23.8303]
[1719281961785,100.0,132.21,132.19,6.8083]
[1719281961987,100.0,132.21,132.2,6.8078]
[1719281962988,100.0,132.21,132.19,6.8082]
[1719281963504,100.0,132.21,132.2,6.8078]
[1719281963725,100.0,132.21,132.18,23.8302]
[1719281964403,100.0,132.19,132.17,6.8092]
[1719281965197,100.0,132.19,132.16,6.8098]
[1719281965403,100.0,132.19,132.17,6.8093]
[1719281965788,100.0,132.19,132.15,23.8354]
[1719281965990,100.0,132.19,132.15,17.0252]
[1719281966296,100.0,132.19,132.17,6.809]
[1719281966499,100.0,132.19,132.16,6.8098]
[1719281967084,100.0,132.21,132.17,17.023]
[1719281967283,100.0,132.23,132.17,17.023]
[1719281967602,100.0,132.23,132.2,6.8077]
[1719281968388,100.0,132.23,132.19,17.0202]
[1719281968594,100.0,132.23,132.21,6.8073]
[1719281968795,100.0,132.23,132.2,6.8077]
[1719281968997,100.0,132.23,132.19,23.8285]
[1719281969194,7.83100835,132.23,132.2,6.8078]
[1719281969709,7.83100835,132.23,132.19,17.0202]
[1719281970086,7.83100835,132.23,132.2,6.8077]
[1719281970588,7.83100835,132.23,132.19,23.8285]
[1719281970798,100.0,132.2,132.18,6.8087]
[1719281971006,100.0,132.18,132.17,6.8094]
[1719281971425,100.0,132.18,132.16,17.024]
[1719281971614,100.0,132.18,132.16,23.8337]
[1719281972117,100.0,132.18,132.17,6.8094]
[1719281973104,100.0,132.18,132.16,23.8337]
[1719281973308,100.0,132.18,132.17,6.8094]
[1719281974008,100.0,132.2,132.18,6.8088]
[1719281974213,100.0,132.22,132.19,6.808]
[1719281974504,100.0,132.22,132.2,6.8077]
[1719281974689,100.0,132.22,132.18,23.8301]
[1719281975405,100.0,132.22,132.19,6.8082]
[1719281975711,100.0,132.22,132.18,23.8301]
[1719281975907,7.83100835,132.23,132.18,17.0214]
[1719281976113,100.0,132.22,132.18,17.0214]
[1719281976610,100.0,132.2,132.18,23.8301]
[1719281976800,7.83100835,132.23,132.18,23.8301]
[1719281976801,100.0,132.22,132.19,6.8082]
[1719281976994,100.0,132.22,132.18,17.0214]
[1719281977402,100.0,132.2,132.18,17.0214]
[1719281978123,100.0,132.22,132.2,6.8075]
[1719281979397,100.0,132.22,132.19,6.8083]
[1719281979595,100.0,132.2,132.18,23.8301]
[1719281980816,100.0,132.2,132.19,6.8083]
[1719281981224,100.0,132.18,132.15,17.0252]
[1719281981516,100.0,132.18,132.17,6.8094]
[1719281981888,100.0,132.18,132.16,6.8097]
[1719281984018,100.0,132.18,132.17,6.8094]
[1719281985315,29.22349155,132.22,132.17,6.8094]
[1719281985316,100.0,132.2,132.17,17.023]
[1719281985520,100.0,132.2,132.19,6.8083]
[1719281985716,129.0,132.22,132.2,6.8077]